Cogmind - Beta 16 @@@ ROGUE MODE // 2025.12.28 @ 16:16:53 Player: Moose Result: Destroyed by G-34 Mercenary with Small Laser Performance ------------- Evolutions (0) 0 Regions Visited (1) 200 Robots Destroyed (8) 40 Value Destroyed (157) 157 Prototype IDs (0) 0 Alien Tech Used (0) 0 Bonus (0) 0 TOTAL SCORE: 397 Bonus ------- None Cogmind --------- Core Integrity 0/250 Matter 300/300 Energy 100/100 System Corruption 1% Temperature Warm (147) Movement Core (100) Ox1 Location -10/Materials Parts ------- > --- POWER (1) -------- (None) > --- PROPULSION (2) --- (None) > --- UTILITY (2) ------ Small Storage Unit > --- WEAPON (2) ------- (None) > --- INVENTORY (8) ---- Light Ion Engine Light Treads Light Treads Aluminum Leg Huge Storage Unit Sensor Array Propulsion Shielding Peak State ------------ > --- POWER ------------ Ion Engine > --- PROPULSION ------- Aluminum Leg Aluminum Leg > --- UTILITY ---------- Small Storage Unit Propulsion Shielding > --- WEAPON ----------- Small Laser Light Assault Rifle > --- INVENTORY -------- Light Ion Engine Light Ion Engine Light Treads Light Treads Wheel Compact Wheel Small Laser [Rating: 7] Favorites ----------- Power Ion Engine Engine Ion Engine Propulsion Aluminum Leg Leg Aluminum Leg Utility Small Storage Unit Storage Small Storage Unit Protection Light Armor Plating Weapon Light Assault Rifle Energy Gun Small Laser Energy Cannon Beam Cannon Ballistic Gun Light Assault Rifle Build | -11 -10 ------- Run | Yrd Mat Slots Evolved . | . . Power . | . . Propulsion . | . . Utility . | . . Weapon . | . . Parts Attached 10 | 4 6 Power 2 | 1 1 Engine 2 | 1 1 Core . | . . Reactor . | . . Propulsion 2 | 2 . Treads . | . . Leg 2 | 2 . Wheel . | . . Hover . | . . Flight . | . . Utility 3 | 1 2 Device . | . . Storage 1 | 1 . Processor . | . . Hackware . | . . Protection 2 | . 2 Artifact . | . . Weapon 3 | . 3 Energy Gun 1 | . 1 Energy Cannon 1 | . 1 Ballistic Gun 1 | . 1 Ballistic Cannon . | . . Launcher . | . . Special Weapon . | . . Impact Weapon . | . . Slashing Weapon . | . . Piercing Weapon . | . . Special Melee Weapon . | . . Unidentified Prototypes . | . . Parts Lost 7 | . 7 Power 2 | . 2 Propulsion 2 | . 2 Utility 1 | . 1 Weapon 2 | . 2 Highest Loss Streak 7 | . 7 To Critical Strikes . | . . Average Backups 7 | 6 7 Power 1 | . 1 Propulsion 3 | 2 3 Utility 1 | . 1 Weapon 1 | 2 . Tool/Special . | . . Unused Backups 9 | . 9 Power 1 | . 1 Propulsion 5 | . 5 Utility 2 | . 2 Weapon 1 | . 1 Tool/Special . | . . Average Slot Usage (%) 94 | . 94 Engine 13 | . 13 Leg 27 | . 27 Storage 14 | . 14 Protection 10 | . 10 Energy Gun 6 | . 6 Energy Cannon 6 | . 6 Ballistic Gun 13 | . 13 Peak Build Rating 7 | 4 7 Average Rating 5 | 2 6 On Entrance 2 | . 4 Avg Prop Armor Cover (%) . | . . Naked Turns . | . . Heaviest Build 17 | 10 17 Greatest Support 20 | 20 20 Greatest Overweight (x) 3 | 3 2 Average Overweight (x) . | . . Largest Inventory Capacity 8 | 8 8 Average Capacity 7 | 7 8 Most Carried 8 | 8 8 Average Carried 7 | 6 7 Final Capacity 8 | 8 8 Final Carried 8 | 8 7 Class Distribution -------------------- 100% | Mutant Dominant Class ---------------- Mutant | -10/Materials Resources | -11 -10 ----------- Run | Yrd Mat Matter Collected 315 | 211 104 Remotely . | . . Salvage Created 181 | . 181 Parts 11 | . 11 Haulers Intercepted . | . . Recyclers Shooed . | . . Parts Field Recycled . | . . Retrieved Matter . | . . Parts Self-Destructed . | . . Prevented . | . . Parts Restored . | . . Kills | -11 -10 ------- Run | Yrd Mat Combat Hostiles Destroyed 7 | . 7 Guns 3 | . 3 Cannons 4 | . 4 Classes Destroyed 3 | . 3 Operator 1 | . 1 Swarmer 5 | . 5 Grunt 2 | . 2 Best Kill Streak 3 | . 3 Combat Bots Only 3 | . 3 Max Kills in Single Turn 1 | . 1 Gunslinging . | . . Exploded . | . . Melee . | . . Uniques/NPCs Destroyed . | . . Combat | -11 -10 -------- Run | Yrd Mat Hostile Shots Fired 119 | . 119 Missed 25 | . 25 Hits 94 | . 94 Projectile 94 | . 94 Critical Strikes 1 | . 1 Damage Taken 957 | . 957 Core 258 | . 258 Absorbed by Shields . | . . Redirected to Shielding 30 | . 30 Core Remaining (%) 100 | 100 . Volleys Fired 35 | . 35 Largest 2 | . 2 Hottest 80 | . 80 Shots Fired 70 | . 70 Gun 54 | . 54 Cannon 16 | . 16 Launcher . | . . Special . | . . Kinetic 35 | . 35 Thermal 35 | . 35 Explosive . | . . Electromagnetic . | . . Robot Hit Streak 8 | . 8 Robot Miss Streak 3 | . 3 Penetration Max . | . . Secondary Targets . | . . Shots Hit Robots 42 | . 42 Core Hits 15 | . 15 Critical Kills . | . . Critical Parts Destroyed . | . . Critical Strikes . | . . Melee Attacks . | . . Impact . | . . Slashing . | . . Piercing . | . . Sneak Attacks . | . . Combat Hostiles . | . . Follow-up Attacks . | . . Damage Inflicted 486 | . 486 Guns 308 | . 308 Cannons 178 | . 178 Explosions . | . . Melee . | . . Ramming . | . . Kinetic 143 | . 143 Thermal 343 | . 343 Explosive . | . . Electromagnetic . | . . Impact . | . . Slashing . | . . Piercing . | . . Highest Corruption 1 | . 1 Average Corruption 1 | . 1 Corruption Purged . | . . Corruption Blocked . | . . Effects 1 | . 1 Matter Fused 1 | . 1 Overload Shots . | . . Overflow Damage . | . . Projectiles . | . . Explosions . | . . Melee . | . . Knockbacks . | . . Impact . | . . Kinetic . | . . Secondary . | . . Self-Inflicted Damage . | . . Shots . | . . Rammed . | . . Targets Rammed . | . . Kicked . | . . Crushed . | . . Highest Temperature 222 | . 222 Average Temperature 95 | . 95 Received Heat Transfer 381 | . 381 Effects 1 | . 1 Energy Bleed 1 | . 1 Siege Activations . | . . Martial Activations . | . . Shielding Activations . | . . Robots Disrupted . | . . Combat Hostiles . | . . Robots Corrupted . | . . Combat Hostiles . | . . Parts Fried . | . . Impact Corruptions . | . . Robots Melted . | . . Combat Hostiles . | . . Parts Melted 1 | . 1 Heat Transferred 745 | . 745 Parts Sabotaged . | . . Parts Stolen . | . . Parts Stripped . | . . Power Chain Reactions . | . . Alert | -11 -10 ------- Run | Yrd Mat Maximum Alert Level . | . . Low Security (%) 100 | 100 100 Level 1 . | . . Level 2 . | . . Level 3 . | . . Level 4 . | . . Level 5 . | . . High Security . | . . Max Security . | . . Peak Influence 95 | . 95 Initial . | . . Average 16 | . 21 Influence Increases 250 | . 250 Destroy 0b10 Robot/C 140 | . 140 Destroy 0b10 Robot/NC 5 | . 5 Destroy Leader 30 | . 30 Disable Machine 15 | . 15 Lose Combat Pursuer 60 | . 60 Influence Decreases 205 | . 205 Time Decay 135 | . 135 Lost Part 70 | . 70 Squads Dispatched 2 | . 2 Investigation 1 | . 1 Extermination . | . . Reinforcement 1 | . 1 Assault . | . . Garrison . | . . Intercept . | . . Searches Triggered . | . . Construction Impeded . | . . Haulers Reinforced . | . . Active Scanning Responses . | . . Cargo Convoy Interrupts . | . . Stealth | -11 -10 --------- Run | Yrd Mat Distress Signals . | . . Communications Jammed . | . . Distress Signals . | . . Times Spotted 17 | . 17 Peak Tracking Total 7 | . 7 Tactical Retreats 2 | . 2 Traps | -11 -10 ------- Run | Yrd Mat Traps Triggered 2 | . 2 Indirectly . | . . Trap Hack Attempts . | . . Triggered . | . . Disarmed . | . . Reprogrammed . | . . Reused . | . . Traps Extracted . | . . Installed . | . . Triggered . | . . Machines | -11 -10 ---------- Run | Yrd Mat Machines Disabled 1 | . 1 Max in Single Turn 1 | . 1 Machines Repaired . | . . Machines Dismantled . | . . Machines Sabotaged . | . . Overloaded Fab Kills . | . . Hacking | -11 -10 --------- Run | Yrd Mat Machines Accessed 2 | . 2 Terminals 2 | . 2 Fabricators . | . . Repair Stations . | . . Recycling Units . | . . Scanalyzers . | . . Garrison Access . | . . Total Hacks 7 | . 7 Successful 4 | . 4 Failed 3 | . 3 Catastrophic 1 | . 1 Database Lockouts . | . . Manual . | . . Terminals 7 | . 7 Fabricators . | . . Repair Stations . | . . Recycling Units . | . . Scanalyzers . | . . Garrison Access . | . . Terminal Hacks 4 | . 4 Record 2 | . 2 Dispatch Records 1 | . 1 Recall Reinforcements 1 | . 1 Fabricator Hacks . | . . Repair Station Hacks . | . . Recycling Unit Hacks . | . . Scanalyzer . | . . Garrison Access Hacks . | . . Unauthorized Hacks . | . . Terminals . | . . Fabricators . | . . Repair Stations . | . . Recycling Units . | . . Scanalyzers . | . . Garrison Access . | . . Data Cores Recovered . | . . Used . | . . Hacking Detections 2 | . 2 Full Trace Events 1 | . 1 Feedback Events . | . . Feedback Blocked . | . . Robot Schematics Acquired . | . . Robots Built . | . . Authchips . | . . Time . | . . Total Robot Build Rating . | . . Part Schematics Acquired . | . . Parts Built . | . . Authchips . | . . Time . | . . Total Part Build Rating . | . . Part Studies Acquired . | . . Parts Repaired . | . . Time . | . . Parts Recycled . | . . Recycled Matter . | . . Retrieved Matter . | . . Retrieved Components . | . . Parts Scanalyzed . | . . Part Schematics Acquired . | . . Parts Damaged . | . . Bothacking | -11 -10 ------------ Run | Yrd Mat Used RIF Installer . | . . Robots Hacked . | . . Non-combat . | . . Combat . | . . Robot Hacks Applied . | . . Relay Couplers Released . | . . Fabnet Peak Effective % . | . . Robots Rewired . | . . Allies Hacked . | . . Hacks Repelled . | . . Allies | -11 -10 -------- Run | Yrd Mat Total Allies . | . . Largest Group . | . . Highest-Rated Group . | . . Highest-Rated Ally . | . . Total Orders . | . . Ally Attacks . | . . Total Damage . | . . Kills . | . . Allies Corrupted . | . . Allies Melted . | . . Intel | -11 -10 ------- Run | Yrd Mat Active Infowar (turns) . | . . Robot Analysis Total . | . . Derelict Logs Recovered . | . . Drone Launches . | . . Drone Recoveries . | . . Exploration | -11 -10 ------------- Run | Yrd Mat Turns Passed 639 | 149 490 Spaces Moved 413 | 101 312 Core 36 | 35 1 Treads . | . . Legs 377 | 66 311 Wheels . | . . Hover . | . . Flight . | . . Fastest Speed 50 | 50 120 Average Speed 123 | 132 120 Slowest Speed 200 | 200 150 Overloaded Moves . | . . Propulsion Burnouts . | . . Robots Hopped . | . . Potential Cave-ins . | . . Cave-ins Triggered . | . . Exploration Rate (%) 18 | 5 32 Regions Visited 1 Branch Regions . Pre-discovered Areas . | . . Known Exits Taken . | . . Unknown Exits Taken 1 | 1 . Scrap Searched . | . . Spaces Dug . | . . Terrain Destroyed . | . . Melee . | . . Projectile . | . . AOE . | . . Terrain Rammed . | . . Walls Destroyed . | . . Machines Disabled . | . . Actions | -11 -10 --------- Run | Yrd Mat Total 482 | 116 366 Wait . | . . Move 412 | 100 312 Hop . | . . Pick Up 20 | 12 8 Fast Attach . | . . Attach 8 | 4 4 Detach . | . . Swap 2 | . 2 Drop 5 | . 5 Fire 35 | . 35 Melee . | . . Ram . | . . Kick . | . . Crush . | . . Escape Stasis . | . . Rewire . | . . Trap . | . . Miscellaneous . | . . Route ------- -11/Scrapyard -10/Materials (discovered 1 exit: [*Mat]) History --------- Turn | Location | Event 30 | -11/Scrapyard | Discovered new exit (range 14) 150 | -11/Scrapyard | Entered Materials 312 | -10/Materials | Build established: Mutant 474 | -10/Materials | Core integrity fell below 50% 585 | -10/Materials | Discovered new exit (range 5) 631 | -10/Materials | Core integrity fell below 20% 640 | -10/Materials | Destroyed by G-34 Mercenary with Small Laser Last Messages --------------- ALERT: Alarm triggered, dispatching investigation squad. K-01 Serf cleans the Electrolysis Chamber. Electrolysis Chamber disabled. K-01 Serf cleans the Electrolysis Chamber. Ion Engine destroyed. Lgt. Armor Plating destroyed. K-01 Serf cleans the Electrolysis Chamber. S-10 Pest destroyed. Aluminum Leg destroyed. K-01 Serf cleans the Electrolysis Chamber. K-01 Serf collects debris. K-01 Serf destroyed. K-01 Serf cleans the Electrolysis Chamber. Lgt. Assault Rifle destroyed. Beam Cannon destroyed. K-01 Serf cleans the Electrolysis Chamber. Aluminum Leg destroyed. K-01 Serf cleans the Electrolysis Chamber. Lgt. Ion Engine destroyed. Map ----- +----------------------------------------------------+ | # # # !! #????????????# #????????????? | | #! """ # # %! ! #????????????# #????????????? | | # """ + ##+########?????????# #????????????? | | # """ # #????????## ##???????????? | | # # % ########## #???????????? | | # # ##+##### #???????????? | | ######## #??????# T #???????????? | | # [! !# #??????# #???????????? | | # ! # #??????# ########## ????????? | | # !! # #??????# #????????###### ####???????? | | # # #??#####+#####??????????? #??????????? | | # # #??# #??????????? #??????????? | | # """ # #??# """ """ #??????????? #??????????? | | # """ + #??# """ """ #????????????#??????????? | | # """ # *#??# """ """ #???????????????????????? | | # #%%#??# """ """ #???????????????????????? | | # """ # [#??# """ """ #???????????????????????? | | # """ =# #### #???????????????????????? | | # """[ # + #???????????????????????? | | # =# ##############???????????????????????? | | ######+# #?# ##########???????????????????? | | ?????# #?# ? ????????????????????? | | ?????# #?# ?? ?????????????????????? | | ?????# #?? ??? %!??????????????????????? | | ?????# #?? #####/#######????????????????? | | ?????# =*#??# ## g@* #????????????????? | | ???###+##+#### ## gsgggt #????????????????? | | ???# [ = # ## """ """ #????????????????? | | ???# # ## "" """ #????????????????? | | ???# # ## """ """ #????????????????? | | ???# # ## k k #????????????????? | | ???###+####### ######+#######????????????????? | | ?????# #?# #??????????????????????? | | ?????# #?# < #??????????????????????? | | ?????# #?# ???????????????? | | ?????# #?######+#############+###??????????????? | | ?????# #??# #??????????????????????????? | | ?????# #??# #??????????????????????????? | | ?????# #### #??????????????????????????? | | ?????# + #??????????????????????????? | | ?????#### # #??????????????????????????? | | ????????# # #??????????????????????????? | | ????????# # #??????????????????????????? | | ????????# # #??????????????????????????? | | ????????# ###########??????????????????????????? | | ???????? ????????????????????????????????????? | | ???????? ????????????????????????????????????? | | ???????? #????????????????????????????????????? | | ???????? ?????????????????????????????????????? | | ???????? ?????????????????????????????????????? | +----------------------------------------------------+ Best States ------------- Heat Dissipation 25 Energy Generation 10 Energy Capacity 250 Matter Stores 300 Matter Capacity 300 Sight Range 16 Terrain Scan Density 10 Armor Coverage 150 Propulsion Shielding 33 Evasion (%) 55 Item Schematics ----------------- None Robot Schematics ------------------ None Fabricated ------------ Nothing Repaired ---------- Nothing Studied --------- None Alien Tech Used ----------------- None Achievements -------------- None Challenges ------------ None Game ------ Seed FortressTimingCharge Manual? 0 Play Time 00:09:55 Cumulative 14.4 hours Start 2025.12.28 @ 15:04:07 End 2025.12.28 @ 16:16:53 Sessions 1 Manual Loads 0 Difficulty Rogue Special Mode None Game No. 35 Rogue 35 Adventurer 0 Explorer 0 Win Type - Total 0 Types 0/0/0/0/0/0/0/0/0/0 Lore% 4 Gallery% 18 Achievement% 14 Wizard Run 0 Options --------- Layout 1 ASCII 0 Keyboard 0 Movement Arrows Keybinds 0 Fullscreen 1 Font 16/SmallcapsGlow Map View 55x38 Zoom Use 0% Tactical HUD 0 Map Filters NONE Filters NONE Steam 1 RUN: b9e508d7-c8a8-4410-bdc0-e78c20437df1